[Event "Titled Tuesday Blitz April 25 Early 2023"]
[White "Jimenez Jimenez, Leandro"]
[Black "Smirnov, Pavel"]
[WhiteFideId "6415253"]
[BlackFideId "4123425"]
[WhiteElo "2263"]
[BlackElo "2519"]
[Result "0-1"]
[Round "01"]
[TimeControl "180+2"]
[Date "2023.04.25"]
[WhiteClock "0:00:04"]
[BlackClock "0:00:40"]

1. d4 {[%clk 0:02:57]}  Nf6 {[%clk 0:02:59]} 2. c4 {[%clk 0:02:57]}  e6 {[%clk 0:03:00]} 3. Nf3 {[%clk 0:02:55]}  d5 {[%clk 0:03:00]} 4. g3 {[%clk 0:02:54]}  c6 {[%clk 0:03:01]} 5. Bg2 {[%clk 0:02:54]}  Be7 {[%clk 0:03:02]} 6. O-O {[%clk 0:02:55]}  O-O {[%clk 0:03:02]} 7. Nbd2 {[%clk 0:02:47]}  b6 {[%clk 0:03:02]} 8. Qc2 {[%clk 0:02:42]}  Bb7 {[%clk 0:03:02]} 9. e4 {[%clk 0:02:42]}  Na6 {[%clk 0:03:02]} 10. a3 {[%clk 0:02:39]}  c5 {[%clk 0:03:02]} 11. exd5 {[%clk 0:02:35]}  exd5 {[%clk 0:03:02]} 12. Rd1 {[%clk 0:02:25]}  Rc8 {[%clk 0:03:00]} 13. Qa4 {[%clk 0:02:17]}  Qe8 {[%clk 0:02:43]} 14. Qb3 {[%clk 0:02:04]}  cxd4 {[%clk 0:02:29]} 15. Nxd4 {[%clk 0:01:54]}  dxc4 {[%clk 0:02:21]} 16. Nxc4 {[%clk 0:01:51]}  Bxg2 {[%clk 0:02:21]} 17. Kxg2 {[%clk 0:01:51]}  Nc5 {[%clk 0:02:21]} 18. Qf3 {[%clk 0:01:48]}  Qa4 {[%clk 0:02:10]} 19. b4 {[%clk 0:01:31]}  Nce4 {[%clk 0:02:03]} 20. Ne5 {[%clk 0:01:21]}  Rc3 {[%clk 0:01:54]} 21. Be3 {[%clk 0:01:16]}  Rxa3 {[%clk 0:01:48]} 22. Rxa3 {[%clk 0:00:58]}  Qxa3 {[%clk 0:01:49]} 23. b5 {[%clk 0:00:58]}  Bc5 {[%clk 0:01:46]} 24. g4 {[%clk 0:00:47]}  h6 {[%clk 0:01:42]} 25. h4 {[%clk 0:00:46]}  Re8 {[%clk 0:01:42]} 26. Nxf7 {[%clk 0:00:43]}  Kxf7 {[%clk 0:01:40]} 27. g5 {[%clk 0:00:43]}  hxg5 {[%clk 0:01:41]} 28. hxg5 {[%clk 0:00:44]}  Nxg5 {[%clk 0:01:38]} 29. Bxg5 {[%clk 0:00:42]}  Qxf3+ {[%clk 0:01:39]} 30. Kxf3 {[%clk 0:00:41]}  Ne4 {[%clk 0:01:39]} 31. Be3 {[%clk 0:00:39]}  Nc3 {[%clk 0:01:38]} 32. Ra1 {[%clk 0:00:38]}  Ra8 {[%clk 0:01:31]} 33. Ra6 {[%clk 0:00:19]}  Bxd4 {[%clk 0:01:19]} 34. Bxd4 {[%clk 0:00:19]}  Nxb5 {[%clk 0:01:20]} 35. Bxb6 {[%clk 0:00:16]}  Rb8 {[%clk 0:01:20]} 36. Be3 {[%clk 0:00:14]}  Rb7 {[%clk 0:01:20]} 37. Ke4 {[%clk 0:00:11]}  Rd7 {[%clk 0:01:17]} 38. f4 {[%clk 0:00:09]}  Ke8 {[%clk 0:01:08]} 39. f5 {[%clk 0:00:10]}  Kd8 {[%clk 0:01:08]} 40. Ra5 {[%clk 0:00:10]}  Rb7 {[%clk 0:01:07]} 41. Bd4 {[%clk 0:00:08]}  Kc8 {[%clk 0:01:05]} 42. Ra1 {[%clk 0:00:07]}  Nxd4 {[%clk 0:00:47]} 43. Kxd4 {[%clk 0:00:07]}  Kb8 {[%clk 0:00:45]} 44. Ra6 {[%clk 0:00:06]}  Rb6 {[%clk 0:00:42]} 45. Ra1 {[%clk 0:00:05]}  a6 {[%clk 0:00:42]} 46. Rg1 {[%clk 0:00:04]}  Rb7 {[%clk 0:00:42]} 47. Ke5 {[%clk 0:00:04]}  Ka7 {[%clk 0:00:42]} 48. Rg6 {[%clk 0:00:03]}  a5 {[%clk 0:00:41]} 49. Rg4 {[%clk 0:00:03]}  Ka6 {[%clk 0:00:41]} 50. f6 {[%clk 0:00:02]}  gxf6+ {[%clk 0:00:40]} 51. Kxf6 {[%clk 0:00:03]}  Rb4 {[%clk 0:00:41]} 52. Ke5 {[%clk 0:00:04]}  Rxg4 {[%clk 0:00:40]} 0-1


[Site "https://www.chess.com"]

[Event "Titled Tuesday Blitz April 25 Early 2023"]
[White "Beerdsen, Thomas"]
[Black "Mrudul Dehankar"]
[WhiteFideId "1030108"]
[BlackFideId "25096990"]
[WhiteElo "2547"]
[BlackElo "2139"]
[Result "1-0"]
[Round "01"]
[TimeControl "180+2"]
[Date "2023.04.25"]
[WhiteClock "0:02:00"]
[BlackClock "0:00:01"]

1. e4 {[%clk 0:02:38]}  c6 {[%clk 0:02:56]} 2. f3 {[%clk 0:02:37]}  d5 {[%clk 0:02:49]} 3. d4 {[%clk 0:02:38]}  dxe4 {[%clk 0:02:46]} 4. fxe4 {[%clk 0:02:36]}  e5 {[%clk 0:02:46]} 5. Nf3 {[%clk 0:02:37]}  Bg4 {[%clk 0:02:45]} 6. Bc4 {[%clk 0:02:37]}  Nd7 {[%clk 0:02:43]} 7. O-O {[%clk 0:02:38]}  Ngf6 {[%clk 0:02:31]} 8. Qe1 {[%clk 0:02:38]}  Qc7 {[%clk 0:01:47]} 9. c3 {[%clk 0:02:38]}  Bd6 {[%clk 0:01:43]} 10. h3 {[%clk 0:02:36]}  Bh5 {[%clk 0:01:39]} 11. Bg5 {[%clk 0:02:36]}  Bg6 {[%clk 0:01:37]} 12. Nbd2 {[%clk 0:02:36]}  h6 {[%clk 0:01:32]} 13. Bh4 {[%clk 0:02:33]}  O-O-O {[%clk 0:01:27]} 14. Bd3 {[%clk 0:02:28]}  Bh7 {[%clk 0:01:26]} 15. Nc4 {[%clk 0:02:28]}  Nh5 {[%clk 0:01:10]} 16. Bg3 {[%clk 0:02:24]}  Nxg3 {[%clk 0:01:05]} 17. Qxg3 {[%clk 0:02:25]}  Rde8 {[%clk 0:00:41]} 18. Nxd6+ {[%clk 0:02:18]}  Qxd6 {[%clk 0:00:41]} 19. Rad1 {[%clk 0:02:19]}  g5 {[%clk 0:00:37]} 20. Bc4 {[%clk 0:02:19]}  Rhf8 {[%clk 0:00:32]} 21. b4 {[%clk 0:02:19]}  Qc7 {[%clk 0:00:31]} 22. d5 {[%clk 0:02:11]}  cxd5 {[%clk 0:00:28]} 23. Bxd5 {[%clk 0:02:12]}  Nb6 {[%clk 0:00:27]} 24. Bb3 {[%clk 0:02:11]}  Bxe4 {[%clk 0:00:24]} 25. Nd2 {[%clk 0:02:09]}  Bg6 {[%clk 0:00:18]} 26. a4 {[%clk 0:02:03]}  e4 {[%clk 0:00:16]} 27. Qe3 {[%clk 0:02:04]}  Kb8 {[%clk 0:00:14]} 28. a5 {[%clk 0:02:05]}  Nc8 {[%clk 0:00:14]} 29. a6 {[%clk 0:02:05]}  b6 {[%clk 0:00:14]} 30. Rf6 {[%clk 0:01:59]}  Qe5 {[%clk 0:00:10]} 31. Rdf1 {[%clk 0:02:00]}  Rd8 {[%clk 0:00:07]} 32. Nc4 {[%clk 0:02:00]}  Qc7 {[%clk 0:00:06]} 33. Na3 {[%clk 0:01:58]}  Ne7 {[%clk 0:00:07]} 34. Nb5 {[%clk 0:01:58]}  Qd7 {[%clk 0:00:01]} 35. Rxb6+ {[%clk 0:01:57]}  axb6 {[%clk 0:00:01]} 36. Qxb6+ {[%clk 0:01:58]}  Ka8 {[%clk 0:00:01]} 37. Nc7+ {[%clk 0:01:59]}  Qxc7 {[%clk 0:00:01]} 38. Qxc7 {[%clk 0:02:00]} 1-0


[Site "https://www.chess.com"]

[Event "Titled Tuesday Blitz April 25 Early 2023"]
[White "Rozen, Eytan"]
[Black "Zhukova, Natalia"]
[WhiteFideId "2816750"]
[BlackFideId "14101513"]
[WhiteElo "2451"]
[BlackElo "2297"]
[Result "1-0"]
[Round "01"]
[TimeControl "180+2"]
[Date "2023.04.25"]
[WhiteClock "0:00:09"]
[BlackClock "0:00:01"]

1. d4 {[%clk 0:02:56]}  Nf6 {[%clk 0:02:58]} 2. Nc3 {[%clk 0:02:57]}  e6 {[%clk 0:02:59]} 3. e4 {[%clk 0:02:55]}  d5 {[%clk 0:02:58]} 4. e5 {[%clk 0:02:49]}  Nfd7 {[%clk 0:02:58]} 5. Nce2 {[%clk 0:02:49]}  c5 {[%clk 0:02:58]} 6. c3 {[%clk 0:02:49]}  Nc6 {[%clk 0:02:59]} 7. f4 {[%clk 0:02:49]}  Qb6 {[%clk 0:02:57]} 8. Nf3 {[%clk 0:02:48]}  f6 {[%clk 0:02:58]} 9. g3 {[%clk 0:02:45]}  Be7 {[%clk 0:02:51]} 10. Bh3 {[%clk 0:02:44]}  O-O {[%clk 0:02:52]} 11. Bxe6+ {[%clk 0:02:44]}  Kh8 {[%clk 0:02:52]} 12. Bxd5 {[%clk 0:02:42]}  cxd4 {[%clk 0:02:53]} 13. cxd4 {[%clk 0:02:33]}  fxe5 {[%clk 0:02:53]} 14. fxe5 {[%clk 0:02:05]}  Ndxe5 {[%clk 0:02:32]} 15. dxe5 {[%clk 0:01:40]}  Nxe5 {[%clk 0:02:31]} 16. Bf4 {[%clk 0:01:31]}  Bb4+ {[%clk 0:02:15]} 17. Nc3 {[%clk 0:01:18]}  Ng4 {[%clk 0:01:53]} 18. Qd2 {[%clk 0:00:37]}  Re8+ {[%clk 0:01:37]} 19. Kf1 {[%clk 0:00:36]}  Bf5 {[%clk 0:00:43]} 20. Kg2 {[%clk 0:00:26]}  h6 {[%clk 0:00:23]} 21. Rhe1 {[%clk 0:00:24]}  Nf6 {[%clk 0:00:20]} 22. Rad1 {[%clk 0:00:19]}  Rad8 {[%clk 0:00:12]} 23. Rxe8+ {[%clk 0:00:18]}  Rxe8 {[%clk 0:00:12]} 24. Ne5 {[%clk 0:00:15]}  Kh7 {[%clk 0:00:10]} 25. Bf3 {[%clk 0:00:14]}  Qa5 {[%clk 0:00:07]} 26. a3 {[%clk 0:00:13]}  Bf8 {[%clk 0:00:03]} 27. Ne4 {[%clk 0:00:12]}  Qxd2+ {[%clk 0:00:02]} 28. Nxd2 {[%clk 0:00:13]}  Rd8 {[%clk 0:00:01]} 29. h4 {[%clk 0:00:11]}  Rc8 {[%clk 0:00:01]} 30. Ndc4 {[%clk 0:00:11]}  b5 {[%clk 0:00:01]} 31. Nd6 {[%clk 0:00:11]}  Rc2+ {[%clk 0:00:01]} 32. Kg1 {[%clk 0:00:11]}  Bg6 {[%clk 0:00:01]} 33. Nxg6 {[%clk 0:00:11]}  Kxg6 {[%clk 0:00:01]} 34. h5+ {[%clk 0:00:10]}  Kh7 {[%clk 0:00:01]} 35. Ne8 {[%clk 0:00:09]} 1-0


[Site "https://www.chess.com"]

[Event "Titled Tuesday Blitz April 25 Early 2023"]
[White "Balla, Tamas-Kristof"]
[Black "Rustemov, Alexander"]
[WhiteFideId "1208497"]
[BlackFideId "4119002"]
[WhiteElo "2334"]
[BlackElo "2799"]
[Result "1-0"]
[Round "01"]
[TimeControl "180+2"]
[Date "2023.04.25"]
[WhiteClock "0:00:12"]
[BlackClock "0:00:14"]

1. e4 {[%clk 0:02:57]}  e6 {[%clk 0:03:00]} 2. d4 {[%clk 0:02:56]}  d5 {[%clk 0:03:00]} 3. Nd2 {[%clk 0:02:57]}  dxe4 {[%clk 0:03:01]} 4. Nxe4 {[%clk 0:02:58]}  Bd7 {[%clk 0:03:01]} 5. Bd3 {[%clk 0:02:53]}  Bc6 {[%clk 0:03:01]} 6. Nf3 {[%clk 0:02:54]}  Nd7 {[%clk 0:03:02]} 7. c3 {[%clk 0:02:53]}  Ngf6 {[%clk 0:03:02]} 8. Qe2 {[%clk 0:02:54]}  Nxe4 {[%clk 0:03:01]} 9. Bxe4 {[%clk 0:02:54]}  Bxe4 {[%clk 0:03:01]} 10. Qxe4 {[%clk 0:02:55]}  c6 {[%clk 0:03:01]} 11. O-O {[%clk 0:02:49]}  Be7 {[%clk 0:03:00]} 12. Bf4 {[%clk 0:02:47]}  O-O {[%clk 0:03:00]} 13. Rfe1 {[%clk 0:02:46]}  Qa5 {[%clk 0:02:55]} 14. Ne5 {[%clk 0:02:40]}  Rad8 {[%clk 0:02:49]} 15. h3 {[%clk 0:02:32]}  Qd5 {[%clk 0:02:46]} 16. Qe2 {[%clk 0:02:29]}  Nxe5 {[%clk 0:02:42]} 17. Bxe5 {[%clk 0:02:28]}  Bd6 {[%clk 0:02:21]} 18. Bxd6 {[%clk 0:02:19]}  Rxd6 {[%clk 0:02:20]} 19. a3 {[%clk 0:02:13]}  Rfd8 {[%clk 0:02:17]} 20. Rad1 {[%clk 0:02:12]}  c5 {[%clk 0:02:09]} 21. c4 {[%clk 0:01:45]}  Qc6 {[%clk 0:02:02]} 22. dxc5 {[%clk 0:01:45]}  Qxc5 {[%clk 0:01:57]} 23. Rxd6 {[%clk 0:01:45]}  Qxd6 {[%clk 0:01:57]} 24. Qf3 {[%clk 0:01:43]}  b6 {[%clk 0:01:55]} 25. Qb3 {[%clk 0:01:40]}  g6 {[%clk 0:01:53]} 26. Qa4 {[%clk 0:01:37]}  Qd2 {[%clk 0:01:49]} 27. Rf1 {[%clk 0:01:34]}  Qxb2 {[%clk 0:01:34]} 28. Qxa7 {[%clk 0:01:33]}  Rd3 {[%clk 0:01:17]} 29. a4 {[%clk 0:01:08]}  Ra3 {[%clk 0:01:05]} 30. c5 {[%clk 0:00:54]}  bxc5 {[%clk 0:01:01]} 31. Qxc5 {[%clk 0:00:54]}  Rxa4 {[%clk 0:00:59]} 32. Rd1 {[%clk 0:00:51]}  Kg7 {[%clk 0:00:55]} 33. Qe3 {[%clk 0:00:35]}  Ra2 {[%clk 0:00:49]} 34. Re1 {[%clk 0:00:31]}  Qf6 {[%clk 0:00:46]} 35. Rd1 {[%clk 0:00:30]}  Rb2 {[%clk 0:00:46]} 36. Re1 {[%clk 0:00:30]}  h5 {[%clk 0:00:47]} 37. Rd1 {[%clk 0:00:30]}  h4 {[%clk 0:00:47]} 38. Re1 {[%clk 0:00:26]}  Rc2 {[%clk 0:00:47]} 39. Rd1 {[%clk 0:00:26]}  Qc3 {[%clk 0:00:43]} 40. Qf4 {[%clk 0:00:21]}  Qf6 {[%clk 0:00:39]} 41. Qe3 {[%clk 0:00:21]}  g5 {[%clk 0:00:38]} 42. Re1 {[%clk 0:00:19]}  Kg6 {[%clk 0:00:37]} 43. Qd3+ {[%clk 0:00:19]}  Qf5 {[%clk 0:00:37]} 44. Qe3 {[%clk 0:00:19]}  Qc5 {[%clk 0:00:34]} 45. Qe4+ {[%clk 0:00:17]}  Kg7 {[%clk 0:00:34]} 46. Qf3 {[%clk 0:00:16]}  Rc3 {[%clk 0:00:28]} 47. Qg4 {[%clk 0:00:16]}  Kg6 {[%clk 0:00:26]} 48. Qe4+ {[%clk 0:00:16]}  Qf5 {[%clk 0:00:26]} 49. Qe2 {[%clk 0:00:16]}  Rc2 {[%clk 0:00:26]} 50. Qe3 {[%clk 0:00:16]}  Qd5 {[%clk 0:00:23]} 51. Rf1 {[%clk 0:00:15]}  Qd2 {[%clk 0:00:23]} 52. Qe4+ {[%clk 0:00:15]}  Kf6 {[%clk 0:00:20]} 53. Qf3+ {[%clk 0:00:14]}  Qf4 {[%clk 0:00:19]} 54. Qb3 {[%clk 0:00:11]}  Rd2 {[%clk 0:00:18]} 55. Qc3+ {[%clk 0:00:09]}  Qd4 {[%clk 0:00:18]} 56. Qc8 {[%clk 0:00:08]}  Kg7 {[%clk 0:00:17]} 57. Qc1 {[%clk 0:00:07]}  f6 {[%clk 0:00:14]} 58. Qc7+ {[%clk 0:00:07]}  Qd7 {[%clk 0:00:14]} 59. Qc4 {[%clk 0:00:07]}  Kg6 {[%clk 0:00:15]} 60. Qc3 {[%clk 0:00:08]}  Qd4 {[%clk 0:00:14]} 61. Qf3 {[%clk 0:00:08]}  e5 {[%clk 0:00:13]} 62. Qa8 {[%clk 0:00:09]}  Qd7 {[%clk 0:00:13]} 63. Qg8+ {[%clk 0:00:09]}  Qg7 {[%clk 0:00:13]} 64. Qe8+ {[%clk 0:00:09]}  Qf7 {[%clk 0:00:13]} 65. Qa8 {[%clk 0:00:10]}  Rd4 {[%clk 0:00:12]} 66. Qa1 {[%clk 0:00:09]}  Qd7 {[%clk 0:00:12]} 67. Qb1+ {[%clk 0:00:10]}  Qf5 {[%clk 0:00:12]} 68. Qb8 {[%clk 0:00:10]}  Rd7 {[%clk 0:00:12]} 69. Qg8+ {[%clk 0:00:10]}  Rg7 {[%clk 0:00:13]} 70. Qe8+ {[%clk 0:00:10]}  Kh6 {[%clk 0:00:13]} 71. Qh8+ {[%clk 0:00:11]}  Qh7 {[%clk 0:00:13]} 72. Qf8 {[%clk 0:00:11]}  Qg8 {[%clk 0:00:14]} 73. Qxf6+ {[%clk 0:00:11]}  Rg6 {[%clk 0:00:14]} 74. Qxe5 {[%clk 0:00:12]}  Qe6 {[%clk 0:00:14]} 75. Qh8# {[%clk 0:00:12]} 1-0


[Site "https://www.chess.com"]

[Event "Titled Tuesday Blitz April 25 Early 2023"]
[White "Shomoev, Anton"]
[Black "Fan_Of_Chucky"]
[WhiteFideId "4135148"]
[WhiteElo "2451"]
[BlackElo "2430"]
[Result "1-0"]
[Round "01"]
[TimeControl "180+2"]
[Date "2023.04.25"]
[WhiteClock "0:01:57"]
[BlackClock "0:00:49"]

1. d4 {[%clk 0:02:58]}  Nf6 {[%clk 0:02:59]} 2. c4 {[%clk 0:02:58]}  c5 {[%clk 0:02:59]} 3. d5 {[%clk 0:02:58]}  b5 {[%clk 0:02:59]} 4. cxb5 {[%clk 0:02:58]}  a6 {[%clk 0:03:00]} 5. e3 {[%clk 0:02:59]}  axb5 {[%clk 0:02:59]} 6. Bxb5 {[%clk 0:03:00]}  Qa5+ {[%clk 0:02:59]} 7. Nc3 {[%clk 0:03:00]}  Bb7 {[%clk 0:03:00]} 8. Bd2 {[%clk 0:03:00]}  Qb6 {[%clk 0:03:01]} 9. a4 {[%clk 0:03:00]}  Nxd5 {[%clk 0:02:57]} 10. Nf3 {[%clk 0:03:01]}  e6 {[%clk 0:02:56]} 11. O-O {[%clk 0:03:00]}  Nb4 {[%clk 0:02:55]} 12. Ne5 {[%clk 0:02:52]}  N8c6 {[%clk 0:02:49]} 13. Nxc6 {[%clk 0:02:19]}  Bxc6 {[%clk 0:02:43]} 14. Qg4 {[%clk 0:02:13]}  f6 {[%clk 0:02:29]} 15. Rfd1 {[%clk 0:02:09]}  Kf7 {[%clk 0:02:28]} 16. Bxc6 {[%clk 0:02:06]}  Qxc6 {[%clk 0:02:26]} 17. Nb5 {[%clk 0:02:05]}  d5 {[%clk 0:01:57]} 18. Bxb4 {[%clk 0:02:04]}  cxb4 {[%clk 0:01:58]} 19. Rac1 {[%clk 0:02:04]}  Qb6 {[%clk 0:01:43]} 20. Rc7+ {[%clk 0:02:03]}  Kg8 {[%clk 0:01:24]} 21. b3 {[%clk 0:02:03]}  Re8 {[%clk 0:01:15]} 22. Rdc1 {[%clk 0:02:01]}  e5 {[%clk 0:01:03]} 23. R1c6 {[%clk 0:01:57]}  Qb8 {[%clk 0:00:55]} 24. Rc8 {[%clk 0:01:57]}  Rxc8 {[%clk 0:00:49]} 25. Qe6# {[%clk 0:01:57]} 1-0


[Site "https://www.chess.com"]

[Event "Titled Tuesday Blitz April 25 Early 2023"]
[White "Gonzalez Zamora, Juan Carlos"]
[Black "Kosakowski, Jakub"]
[WhiteFideId "3507548"]
[BlackFideId "1185080"]
[WhiteElo "2535"]
[BlackElo "2488"]
[Result "0-1"]
[Round "01"]
[TimeControl "180+2"]
[Date "2023.04.25"]
[WhiteClock "0:00:02"]
[BlackClock "0:00:58"]

1. e4 {[%clk 0:03:00]}  c5 {[%clk 0:02:48]} 2. Nf3 {[%clk 0:03:00]}  d6 {[%clk 0:02:40]} 3. d4 {[%clk 0:02:59]}  cxd4 {[%clk 0:02:41]} 4. Qxd4 {[%clk 0:03:00]}  Nf6 {[%clk 0:02:40]} 5. h3 {[%clk 0:03:00]}  Nc6 {[%clk 0:02:39]} 6. Bb5 {[%clk 0:02:59]}  Bd7 {[%clk 0:02:39]} 7. Bxc6 {[%clk 0:02:59]}  Bxc6 {[%clk 0:02:40]} 8. Nc3 {[%clk 0:02:59]}  e6 {[%clk 0:02:39]} 9. Bg5 {[%clk 0:02:59]}  Be7 {[%clk 0:02:40]} 10. O-O-O {[%clk 0:02:59]}  Qa5 {[%clk 0:02:38]} 11. Kb1 {[%clk 0:02:47]}  O-O {[%clk 0:02:35]} 12. h4 {[%clk 0:02:43]}  b5 {[%clk 0:02:32]} 13. Qd3 {[%clk 0:02:02]}  b4 {[%clk 0:02:31]} 14. Nd4 {[%clk 0:02:02]}  Bb7 {[%clk 0:02:20]} 15. Nb3 {[%clk 0:01:33]}  Qb6 {[%clk 0:02:07]} 16. Be3 {[%clk 0:01:20]}  Qc6 {[%clk 0:01:44]} 17. Nd4 {[%clk 0:01:11]}  Qc8 {[%clk 0:01:39]} 18. Nce2 {[%clk 0:01:04]}  Bxe4 {[%clk 0:01:39]} 19. Qd2 {[%clk 0:01:04]}  a5 {[%clk 0:01:35]} 20. f3 {[%clk 0:01:03]}  Bb7 {[%clk 0:01:35]} 21. g4 {[%clk 0:01:00]}  Nd5 {[%clk 0:01:33]} 22. h5 {[%clk 0:00:43]}  a4 {[%clk 0:01:30]} 23. g5 {[%clk 0:00:40]}  a3 {[%clk 0:01:26]} 24. b3 {[%clk 0:00:37]}  e5 {[%clk 0:01:14]} 25. Nb5 {[%clk 0:00:28]}  Qf5 {[%clk 0:01:10]} 26. Rdf1 {[%clk 0:00:11]}  Rac8 {[%clk 0:01:09]} 27. Ng3 {[%clk 0:00:07]}  Qd7 {[%clk 0:01:07]} 28. Ne4 {[%clk 0:00:06]}  Qxb5 {[%clk 0:01:06]} 29. Rf2 {[%clk 0:00:06]}  Nc3+ {[%clk 0:01:03]} 30. Nxc3 {[%clk 0:00:03]}  Rxc3 {[%clk 0:01:04]} 31. h6 {[%clk 0:00:03]}  g6 {[%clk 0:01:04]} 32. Rg1 {[%clk 0:00:03]}  Rfc8 {[%clk 0:01:04]} 33. Qc1 {[%clk 0:00:02]}  d5 {[%clk 0:00:58]} 34. Rg4 {[%clk 0:00:02]}  d4 {[%clk 0:00:58]} 0-1


[Site "https://www.chess.com"]

[Event "Titled Tuesday Blitz April 25 Early 2023"]
[White "Omariev, Maksim"]
[Black "Milikow, Yoav"]
[WhiteFideId "4193423"]
[BlackFideId "2822237"]
[WhiteElo "2427"]
[BlackElo "2410"]
[Result "0-1"]
[Round "01"]
[TimeControl "180+2"]
[Date "2023.04.25"]
[WhiteClock "0:00:04"]
[BlackClock "0:00:17"]

1. g4 {[%clk 0:02:57]}  g6 {[%clk 0:02:56]} 2. Bg2 {[%clk 0:02:56]}  Bg7 {[%clk 0:02:39]} 3. d4 {[%clk 0:02:55]}  d5 {[%clk 0:02:30]} 4. g5 {[%clk 0:02:55]}  Nc6 {[%clk 0:02:28]} 5. Nf3 {[%clk 0:02:52]}  h6 {[%clk 0:02:19]} 6. h4 {[%clk 0:02:47]}  hxg5 {[%clk 0:02:13]} 7. hxg5 {[%clk 0:02:48]}  Rxh1+ {[%clk 0:02:13]} 8. Bxh1 {[%clk 0:02:49]}  Bg4 {[%clk 0:02:11]} 9. c3 {[%clk 0:02:47]}  Qd6 {[%clk 0:02:02]} 10. Nbd2 {[%clk 0:02:29]}  e6 {[%clk 0:01:45]} 11. Nf1 {[%clk 0:02:22]}  Nge7 {[%clk 0:01:41]} 12. Be3 {[%clk 0:02:00]}  Nf5 {[%clk 0:01:39]} 13. Qd2 {[%clk 0:02:00]}  Nxe3 {[%clk 0:01:32]} 14. Nxe3 {[%clk 0:02:01]}  Bh5 {[%clk 0:01:23]} 15. O-O-O {[%clk 0:01:58]}  O-O-O {[%clk 0:01:23]} 16. Bg2 {[%clk 0:01:41]}  Bf8 {[%clk 0:01:19]} 17. Ne1 {[%clk 0:00:55]}  Be7 {[%clk 0:01:13]} 18. Nf1 {[%clk 0:00:52]}  Rh8 {[%clk 0:01:02]} 19. Nd3 {[%clk 0:00:43]}  Na5 {[%clk 0:01:00]} 20. Ng3 {[%clk 0:00:38]}  Nc4 {[%clk 0:00:58]} 21. Qf4 {[%clk 0:00:38]}  Qxf4+ {[%clk 0:00:57]} 22. Nxf4 {[%clk 0:00:37]}  Bxg5 {[%clk 0:00:58]} 23. Nxh5 {[%clk 0:00:33]}  Rxh5 {[%clk 0:00:57]} 24. e3 {[%clk 0:00:33]}  Rh2 {[%clk 0:00:55]} 25. Rg1 {[%clk 0:00:30]}  Bxf4 {[%clk 0:00:49]} 26. exf4 {[%clk 0:00:31]}  Rh4 {[%clk 0:00:47]} 27. f5 {[%clk 0:00:19]}  gxf5 {[%clk 0:00:44]} 28. Bf1 {[%clk 0:00:20]}  Nd6 {[%clk 0:00:42]} 29. Kd2 {[%clk 0:00:17]}  Kd7 {[%clk 0:00:39]} 30. Rg8 {[%clk 0:00:15]}  Rh1 {[%clk 0:00:36]} 31. Ke1 {[%clk 0:00:15]}  Rh2 {[%clk 0:00:35]} 32. Bd3 {[%clk 0:00:13]}  a6 {[%clk 0:00:34]} 33. a4 {[%clk 0:00:13]}  Rh3 {[%clk 0:00:34]} 34. Ke2 {[%clk 0:00:12]}  Rh1 {[%clk 0:00:33]} 35. a5 {[%clk 0:00:12]}  Ra1 {[%clk 0:00:32]} 36. b4 {[%clk 0:00:12]}  Ra2+ {[%clk 0:00:32]} 37. Ke3 {[%clk 0:00:12]}  Ra3 {[%clk 0:00:29]} 38. Kd2 {[%clk 0:00:12]}  Ra2+ {[%clk 0:00:29]} 39. Ke3 {[%clk 0:00:12]}  Ke7 {[%clk 0:00:25]} 40. Rb8 {[%clk 0:00:11]}  Ra1 {[%clk 0:00:24]} 41. Rh8 {[%clk 0:00:07]}  Rc1 {[%clk 0:00:20]} 42. Kd2 {[%clk 0:00:07]}  Rg1 {[%clk 0:00:21]} 43. Rb8 {[%clk 0:00:05]}  f4 {[%clk 0:00:21]} 44. Rh8 {[%clk 0:00:04]}  Ra1 {[%clk 0:00:21]} 45. Ke2 {[%clk 0:00:01]}  Ra2+ {[%clk 0:00:21]} 46. Ke1 {[%clk 0:00:01]}  Ra3 {[%clk 0:00:19]} 47. Ke2 {[%clk 0:00:01]}  Rxc3 {[%clk 0:00:19]} 48. Rh4 {[%clk 0:00:02]}  Rb3 {[%clk 0:00:19]} 49. Rxf4 {[%clk 0:00:02]}  Rxb4 {[%clk 0:00:19]} 50. Ke3 {[%clk 0:00:03]}  Nb5 {[%clk 0:00:19]} 51. Bxb5 {[%clk 0:00:01]}  Rxb5 {[%clk 0:00:20]} 52. Rh4 {[%clk 0:00:01]}  Rxa5 {[%clk 0:00:20]} 53. f4 {[%clk 0:00:02]}  Ra3+ {[%clk 0:00:20]} 54. Ke2 {[%clk 0:00:02]}  Rb3 {[%clk 0:00:20]} 55. f5 {[%clk 0:00:03]}  a5 {[%clk 0:00:21]} 56. Rh6 {[%clk 0:00:02]}  a4 {[%clk 0:00:20]} 57. f6+ {[%clk 0:00:03]}  Kd6 {[%clk 0:00:19]} 58. Rh8 {[%clk 0:00:04]}  a3 {[%clk 0:00:19]} 59. Ra8 {[%clk 0:00:05]}  b5 {[%clk 0:00:18]} 60. Kf2 {[%clk 0:00:05]}  b4 {[%clk 0:00:18]} 61. Ke2 {[%clk 0:00:06]}  Rb2+ {[%clk 0:00:18]} 62. Kd3 {[%clk 0:00:07]}  Kc6 {[%clk 0:00:19]} 63. Ra6+ {[%clk 0:00:06]}  Kb5 {[%clk 0:00:19]} 64. Ra8 {[%clk 0:00:07]}  a2 {[%clk 0:00:19]} 65. Rb8+ {[%clk 0:00:05]}  Kc6 {[%clk 0:00:20]} 66. Ra8 {[%clk 0:00:06]}  b3 {[%clk 0:00:20]} 67. Kc3 {[%clk 0:00:06]}  Rb1 {[%clk 0:00:21]} 68. Ra6+ {[%clk 0:00:07]}  Kb7 {[%clk 0:00:20]} 69. Ra4 {[%clk 0:00:02]}  Kc8 {[%clk 0:00:19]} 70. Kb4 {[%clk 0:00:02]}  Kd7 {[%clk 0:00:17]} 71. Kc5 {[%clk 0:00:03]}  b2 {[%clk 0:00:16]} 72. Rxa2 {[%clk 0:00:03]}  Rc1+ {[%clk 0:00:16]} 73. Kb4 {[%clk 0:00:03]}  b1=Q+ {[%clk 0:00:17]} 74. Ka3 {[%clk 0:00:03]}  Rc3+ {[%clk 0:00:17]} 75. Ka4 {[%clk 0:00:04]}  Qxa2+ {[%clk 0:00:17]} 76. Kb5 {[%clk 0:00:04]}  Rb3+ {[%clk 0:00:17]} 77. Kc5 {[%clk 0:00:04]}  Qa7# {[%clk 0:00:17]} 0-1


[Site "https://www.chess.com"]